Cogmind - Beta 10.2 @@@ ROGUE MODE // 2021.08.15 @ 09:03:39 Player: EyeSayUgh Result: Self-destructed Performance ------------- Evolutions (2) 1000 Regions Visited (3) 600 Robots Destroyed (30) 150 Value Destroyed (692) 692 Prototype IDs (2) 40 Alien Tech Used (0) 0 Bonus (0) 0 TOTAL SCORE: 2482 Bonus ------- None Cogmind --------- Core Integrity 515/550 Matter 292/300 Energy 39/290 System Corruption 0% Temperature Cool (392) Movement Flying (34) Location -8/Materials Parts ------- > --- POWER (2) -------- Light Ion Engine Improved Ion Engine > --- PROPULSION (4) --- Cesium-ion Thruster Cesium-ion Thruster Cesium-ion Thruster > --- UTILITY (3) ------ Visual Processing Unit Improved Sensor Array > --- WEAPON (2) ------- Heavy Particle Cannon > --- INVENTORY (4) ---- Visual Processing Unit Heavy Flail Peak State ------------ > --- POWER ------------ Light Ion Engine Improved Ion Engine > --- PROPULSION ------- Cesium-ion Thruster Cesium-ion Thruster Cesium-ion Thruster > --- UTILITY ---------- Visual Processing Unit Improved Sensor Array > --- WEAPON ----------- Heavy Particle Cannon Heavy Particle Cannon > --- INVENTORY -------- Visual Processing Unit Heavy Flail [Rating: 22] Favorites ----------- Power Ion Engine Engine Ion Engine Propulsion Compact Wheel Treads Light Treads Leg Aluminum Leg Wheel Compact Wheel Flight Unit Cesium-ion Thruster Utility Light Armor Plating Device Structural Scanner Processor Visual Processing Unit Protection Light Armor Plating Weapon Light Assault Rifle Energy Gun Small Laser Energy Cannon Heavy Particle Cannon Ballistic Gun Light Assault Rifle Ballistic Cannon Light Cannon Launcher Grenade Launcher Special Weapon Plasma Cutter Impact Weapon Heavy Flail Build | -11 -10 -9 -8 ------- Run | Scr Mat Mat Mat Slots Evolved 4 | . . 2 2 Power 1 | . . 1 . Propulsion 2 | . . . 2 Utility 1 | . . 1 . Weapon . | . . . . Parts Attached 52 | 5 14 25 8 Power 7 | 1 1 4 1 Engine 7 | 1 1 4 1 Core . | . . . . Reactor . | . . . . Propulsion 20 | 2 7 6 5 Treads 3 | . . . 3 Leg 1 | . . 1 . Wheel 9 | 2 7 . . Hover . | . . . . Flight 7 | . . 5 2 Utility 11 | . 4 6 1 Device 4 | . 1 2 1 Storage . | . . . . Processor 2 | . 1 1 . Hackware . | . . . . Protection 5 | . 2 3 . Artifact . | . . . . Weapon 14 | 2 2 9 1 Energy Gun 1 | . . 1 . Energy Cannon 3 | . . 2 1 Ballistic Gun 4 | 2 . 2 . Ballistic Cannon 2 | . 1 1 . Launcher 1 | . 1 . . Special Weapon 2 | . . 2 . Impact Weapon 1 | . . 1 . Slashing Weapon . | . . . . Piercing Weapon . | . . . . Special Melee Weapon . | . . . . Unidentified Prototypes . | . . . . Parts Lost 13 | . . 12 1 Power 1 | . . 1 . Propulsion 5 | . . 5 . Utility 3 | . . 3 . Weapon 4 | . . 3 1 Highest Loss Streak 8 | . . 8 1 Average Slot Usage (%) 77 | . 94 73 64 Engine 13 | . 14 15 9 Leg 1 | . . 2 . Wheel 12 | . 28 9 . Flight 6 | . . 6 21 Device 6 | . 2 9 4 Processor 2 | . 2 . 9 Protection 11 | . 18 11 . Energy Gun 2 | . . 3 . Energy Cannon 4 | . . 3 15 Ballistic Gun 6 | . 15 3 . Ballistic Cannon 3 | . 5 4 . Launcher 2 | . 7 . . Impact Weapon 1 | . . 1 2 Naked Turns . | . . . . Heaviest Build 20 | 7 15 20 16 Greatest Support 40 | 26 32 32 40 Greatest Overweight (x) 5 | . . 5 1 Average Overweight (x) . | . . . . Largest Inventory Capacity 4 | 4 4 4 4 Average Capacity 4 | 4 4 4 4 Most Carried 4 | 4 4 4 4 Average Carried 3 | 2 3 2 3 Final Capacity 4 | 4 4 4 4 Final Carried 4 | 3 4 4 2 Class Distribution -------------------- 84% | Mutant 15% | Scavenger-Mutant Dominant Class ---------------- Mutant | -10/Materials Mutant | -9/Materials Mutant | -8/Materials Resources | -11 -10 -9 -8 ----------- Run | Scr Mat Mat Mat Matter Collected 825 | 254 82 400 89 Remotely . | . . . . Salvage Created 1033 | 67 185 626 155 Parts 55 | 1 10 37 7 Haulers Intercepted . | . . . . Recyclers Shooed 4 | . . 2 2 Parts Field Recycled . | . . . . Retrieved Matter . | . . . . Parts Self-Destructed . | . . . . Prevented . | . . . . Kills | -11 -10 -9 -8 ------- Run | Scr Mat Mat Mat Combat Hostiles Destroyed 25 | . 7 17 1 Guns 10 | . 3 7 . Cannons 11 | . . 10 1 AOE 4 | . 4 . . Classes Destroyed 6 | 1 2 2 1 Recycler 4 | 1 . 2 1 Watcher 1 | . . . 1 Swarmer 11 | . 3 8 . Grunt 11 | . 4 7 . Brawler 1 | . . 1 . Sentry 2 | . . 1 1 Best Kill Streak 4 | 1 3 4 1 Combat Bots Only 4 | . 3 4 1 Max Kills in Single Turn 2 | 1 2 1 1 Gunslinging . | . . . . Exploded 2 | . 2 . . Melee . | . . . . Uniques/NPCs Destroyed . | . . . . Combat | -11 -10 -9 -8 -------- Run | Scr Mat Mat Mat Damage Taken 1545 | . 202 1197 146 Core 317 | . 16 266 35 Absorbed by Shields . | . . . . Core Remaining (%) 75 | 100 93 33 . Volleys Fired 86 | 2 10 64 10 Largest 2 | 2 2 2 2 Hottest 150 | 40 65 150 150 Shots Fired 138 | 4 20 94 20 Gun 60 | 4 14 42 . Cannon 64 | . 1 43 20 Launcher 5 | . 5 . . Special 9 | . . 9 . Kinetic 62 | 4 15 43 . Thermal 71 | . . 51 20 Explosive 5 | . 5 . . Electromagnetic . | . . . . Robot Hit Streak 12 | 3 4 12 5 Robot Miss Streak 3 | 1 2 3 2 Penetration Max . | . . . . Secondary Targets 1 | . 1 . . Max Gunslinging Chain 1 | . 1 . . Shots Hit Robots 93 | 3 13 63 14 Core Hits 45 | 2 13 27 3 Critical Hits . | . . . . Critical Kills . | . . . . Critical Parts Destroyed . | . . . . Melee Attacks 1 | . . 1 . Impact 1 | . . 1 . Slashing . | . . . . Piercing . | . . . . Sneak Attacks . | . . . . Combat Hostiles . | . . . . Follow-up Attacks . | . . . . Damage Inflicted 1520 | 17 262 966 275 Guns 366 | 17 70 279 . Cannons 910 | . . 635 275 Explosions 192 | . 192 . . Melee 21 | . . 21 . Ramming . | . . . . Kinetic 497 | 17 70 410 . Thermal 810 | . . 535 275 Explosive 192 | . 192 . . Electromagnetic . | . . . . Impact 21 | . . 21 . Slashing . | . . . . Piercing . | . . . . Highest Corruption . | . . . . Average Corruption . | . . . . Corruption Purged . | . . . . Overload Shots . | . . . . Overflow Damage 15 | . . 15 . Projectiles 15 | . . 15 . Explosions . | . . . . Melee . | . . . . Knockbacks 5 | . . 5 . Impact 1 | . . 1 . Kinetic 4 | . . 4 . Secondary . | . . . . Self-Inflicted Damage 63 | . 63 . . Shots 3 | . 3 . . Rammed . | . . . . Targets Rammed . | . . . . Kicked . | . . . . Crushed . | . . . . Highest Temperature 383 | . 93 362 383 Average Temperature 126 | . 40 141 99 Received Heat Transfer 597 | . 33 501 63 Effects 7 | . . 5 2 Shutdowns 2 | . . 2 . Energy Bleed 3 | . . 1 2 Short Circuit 2 | . . 2 . Siege Activations . | . . . . Robots Corrupted . | . . . . Combat Hostiles . | . . . . Parts Fried . | . . . . Impact Corruptions . | . . . . Robots Melted . | . . . . Combat Hostiles . | . . . . Parts Melted 3 | . . 3 . Heat Transferred 1373 | . . 966 407 Parts Sabotaged . | . . . . Parts Stolen . | . . . . Parts Stripped . | . . . . Power Chain Reactions . | . . . . Missiles Intercepted . | . . . . Alert | -11 -10 -9 -8 ------- Run | Scr Mat Mat Mat Peak Influence 315 | 5 275 315 206 Initial 128 | . 3 115 128 Average 146 | 1 122 170 156 Maximum Alert Level 1 | . 1 1 1 Low Security (%) 69 | 100 77 55 92 Level 1 30 | . 22 44 7 Level 2 . | . . . . Level 3 . | . . . . Level 4 . | . . . . Level 5 . | . . . . High Security . | . . . . Max Security . | . . . . Squads Dispatched 3 | . 2 1 . Investigation 2 | . 2 . . Extermination . | . . . . Reinforcement 1 | . . 1 . Assault . | . . . . Garrison . | . . . . Intercept . | . . . . Construction Impeded . | . . . . Haulers Reinforced . | . . . . Stealth | -11 -10 -9 -8 --------- Run | Scr Mat Mat Mat Distress Signals 3 | . . 2 1 Communications Jammed . | . . . . Distress Signals . | . . . . Times Spotted 45 | . 11 27 7 Peak Tracking Total 6 | . 3 6 6 Tactical Retreats 3 | . 2 1 . Traps | -11 -10 -9 -8 ------- Run | Scr Mat Mat Mat Traps Triggered 2 | . 2 . . Indirectly . | . . . . Trap Hack Attempts . | . . . . Triggered . | . . . . Disarmed . | . . . . Reprogrammed . | . . . . Reused . | . . . . Traps Extracted . | . . . . Installed . | . . . . Triggered . | . . . . Machines | -11 -10 -9 -8 ---------- Run | Scr Mat Mat Mat Machines Disabled 2 | . 1 1 . Max in Single Turn 1 | . 1 1 . Machines Sabotaged . | . . . . Garrisons Compromised . | . . . . Overloaded Fab Kills . | . . . . Fab Network Shutdowns . | . . . . Hacking | -11 -10 -9 -8 --------- Run | Scr Mat Mat Mat Machines Accessed 5 | . 3 2 . Terminals 4 | . 2 2 . Fabricators . | . . . . Repair Stations . | . . . . Recycling Units 1 | . 1 . . Scanalyzers . | . . . . Garrison Access . | . . . . Total Hacks 7 | . 5 2 . Successful 5 | . 4 1 . Failed 2 | . 1 1 . Catastrophic 1 | . . 1 . Database Lockouts . | . . . . Manual . | . . . . Terminals 6 | . 4 2 . Fabricators . | . . . . Repair Stations . | . . . . Recycling Units 1 | . 1 . . Scanalyzers . | . . . . Garrison Access . | . . . . Terminal Hacks 4 | . 3 1 . Prototype ID Bank 1 | . . 1 . Emergency Access Points 1 | . 1 . . Alert Level 1 | . 1 . . Unreport Threat 1 | . 1 . . Fabricator Hacks . | . . . . Repair Station Hacks . | . . . . Recycling Unit Hacks 1 | . 1 . . Retrieve Components 1 | . 1 . . Scanalyzer . | . . . . Garrison Access Hacks . | . . . . Unauthorized Hacks . | . . . . Terminals . | . . . . Fabricators . | . . . . Repair Stations . | . . . . Recycling Units . | . . . . Scanalyzers . | . . . . Garrison Access . | . . . . Data Cores Recovered . | . . . . Used . | . . . . Hacking Detections 4 | . 2 2 . Full Trace Events . | . . . . Feedback Events . | . . . . Feedback Blocked . | . . . . Robot Schematics Acquired . | . . . . Robots Built . | . . . . Matter . | . . . . Time . | . . . . Total Robot Build Rating . | . . . . Part Schematics Acquired . | . . . . Parts Built . | . . . . Matter . | . . . . Time . | . . . . Total Part Build Rating . | . . . . Parts Repaired . | . . . . Time . | . . . . Parts Recycled . | . . . . Recycled Matter . | . . . . Retrieved Matter . | . . . . Retrieved Components 3 | . 3 . . Parts Scanalyzed . | . . . . Part Schematics Acquired . | . . . . Parts Damaged . | . . . . Bothacking | -11 -10 -9 -8 ------------ Run | Scr Mat Mat Mat Used RIF Installer . | . . . . Robots Hacked . | . . . . Non-combat . | . . . . Combat . | . . . . Robot Hacks Applied . | . . . . Relay Couplers Released . | . . . . Robots Rewired . | . . . . Allies Hacked . | . . . . Hacks Repelled . | . . . . Allies | -11 -10 -9 -8 -------- Run | Scr Mat Mat Mat Total Allies . | . . . . Largest Group . | . . . . Highest-Rated Group . | . . . . Highest-Rated Ally . | . . . . Total Orders . | . . . . Ally Attacks . | . . . . Total Damage . | . . . . Kills . | . . . . Allies Corrupted . | . . . . Allies Melted . | . . . . Intel | -11 -10 -9 -8 ------- Run | Scr Mat Mat Mat Robot Analysis Total . | . . . . Derelict Logs Recovered . | . . . . Drone Launches . | . . . . Drone Recoveries . | . . . . Exploration | -11 -10 -9 -8 ------------- Run | Scr Mat Mat Mat Turns Passed 1233 | 63 332 636 202 Spaces Moved 866 | 55 273 373 165 Core 25 | 14 . 11 . Treads 12 | . . . 12 Legs 81 | . . 81 . Wheels 479 | 41 273 165 . Hover . | . . . . Flight 269 | . . 116 153 Fastest Speed 34 | 50 90 37 34 Average Speed 91 | 79 96 103 59 Slowest Speed 360 | 90 100 360 160 Overloaded Moves . | . . . . Propulsion Burnouts . | . . . . Robots Hopped . | . . . . Cave-ins Triggered . | . . . . Exploration Rate (%) 22 | 4 41 30 13 Regions Visited 3 Branch Regions . Pre-discovered Areas . | . . . . Known Exits Taken . | . . . . Unknown Exits Taken 3 | 1 1 1 . Scrap Searched . | . . . . Spaces Dug . | . . . . Terrain Destroyed 41 | . 26 7 8 Melee . | . . . . Projectile 15 | . . 7 8 AOE 26 | . 26 . . Terrain Rammed . | . . . . Walls Destroyed . | . . . . Machines Disabled . | . . . . Actions | -11 -10 -9 -8 --------- Run | Scr Mat Mat Mat Total 1163 | 70 322 521 250 Wait 109 | . 14 34 61 Move 863 | 54 272 372 165 Hop . | . . . . Pick Up 24 | 7 4 12 1 Fast Attach 25 | 3 6 12 4 Attach 13 | 2 . 7 4 Detach 1 | . . . 1 Swap 14 | . 8 6 . Drop 27 | 2 8 13 4 Fire 86 | 2 10 64 10 Melee 1 | . . 1 . Ram . | . . . . Kick . | . . . . Crush . | . . . . Escape Stasis . | . . . . Rewire . | . . . . Trap . | . . . . Miscellaneous . | . . . . Route ------- -11/Scrapyard -10/Materials -9/Materials -8/Materials History --------- Turn | Location | Event 22 | -11/Scrapyard | Discovered new exit (range 15) 64 | -11/Scrapyard | Entered Materials 315 | -10/Materials | Build established: Mutant 386 | -10/Materials | Discovered new exit (range 11) 396 | -10/Materials | Entered another Materials area 396 | -9/Materials | Evolved 2 slots: Power x1, Utility x1 708 | -9/Materials | Lost 8 parts (1p2n2u3w) 928 | -9/Materials | Core integrity fell below 50% 999 | -9/Materials | Discovered new exit (range 16) 1032 | -9/Materials | Entered another Materials area 1032 | -8/Materials | Evolved 2 slots: Propulsion x2 1234 | -8/Materials | Self-destructed Last Messages --------------- 01154_ Acquired Cesium-ion Thruster. 01156_ Dropped Lgt. Treads. 01157_ Acquired Lgt. Treads. 01159_ Dropped Lgt. Treads. 01165_ U-05 Engineer builds a Wall. 01205_ K-01 Serf collects debris. 01210_ W-25 Informer sends out distress signal. 01214_ W-25 Informer destroyed. 01216_ Slug penetrates Wall. 01217_ Acquired 27 matter. 01221_ Slug penetrates Wall. 01221_ K-01 Serf collects debris. 01225_ Slug penetrates Wall. 01226_ K-01 Serf collects debris. 01229_ Overheating: Energy bleed (-6). 01230_ K-01 Serf collects debris. 01231_ Slug penetrates Wall. 01233_ Overheating: Energy bleed (-8). 01233_ K-01 Serf collects debris. 01234_ Hvy. Particle Cannon destroyed. Map ----- +----------------------------------------------------+ | ??????????? ?????????????????????????????????????? | | ??????????? ?????????????????????????????????????? | | ??????????? ?????????????????????????????????????? | | ???????????+?????????????????????????????????????? | | ??????????? ?????????????????????????????????????? | | ??????????? ?????????????????????????????????????? | | ??????????? ?????????????????????????????????????? | | ??????????# #????????????????????????????????????? | | #####?????# #????????????????????????????????????? | | #?????+ #?????????????????????? #??????????? | | """ #?????# #?????????????????????? #??????????? | | """ #?????# #?????????????????????? +??????????? | | """ #?????# #?????????????????????? #??????????? | | """ #?????# #?????????????????????? #??????????? | | """ ##????# #?????????????????????# ???????????? | | ####### #????????????????????? ???????????? | | = + #????????????????????? ???????????? | | ########### #????????????????????? ????????????? | | ??????????# #????????????????????? ! ????????????? | | ??????????# #????????????????????? ????????????? | | ??????????# #?????????????????????# #????????????? | | ????????### ###???????????????????# #????????????? | | ????????# #################;### ###??????????? | | ????????# T" r h ; #??????????? | | ????????+ " kgg g ; #??????????? | | ????????# @ Y #????????????? | | ????????# ##################### #????????????? | | ????????#######???????????????????# #????????????? | | ??????????????????????????????????# #????????????? | | ??????????????????????????????????# #????????????? | | ??????????????????????????????????#?#????????????? | | ??????????????????????????????????# #????????????? | | ??????????????????????????????????# #????????????? | | ?????????????????????????????????? ????????????? | | ?????????????????????????????????? ????????????? | | ?????????????????????????????????? ????????????? | | ?????????????????????????????????? ????????????? | | ?????????????????????????????????? ????????????? | | ?????????????????????????????????? ????????????? | | ?????????????????????????????????? ????????????? | | ?????????????????????????????????? #????????????? | | ?????????????????????????????????? ?????????????? | | ?????????????????????????????????? ?????????????? | | ?????????????????????????????????? ?????????????? | | ?????????????????????????????????????????????????? | | ?????????????????????????????????????????????????? | | ?????????????????????????????????????????????????? | | ?????????????????????????????????????????????????? | | ?????????????????????????????????????????????????? | | ?????????????????????????????????????????????????? | +----------------------------------------------------+ Best States ------------- Heat Dissipation 35 Energy Generation 17 Energy Capacity 415 Matter Stores 300 Matter Capacity 300 Sight Range 18 Robot Scan Range 13 Terrain Scan Density 10 Armor Coverage 300 Evasion (%) 63 Recoil Reduction 2 Item Schematics ----------------- None Robot Schematics ------------------ None Fabricated ------------ Nothing Alien Tech Used ----------------- None Achievements -------------- None Challenges ------------ None Game ------ Seed TrackerHardlightArmor Manual? 0 Play Time 00:30:25 Cumulative 5.8 hours Start 2021.08.15 @ 08:33:27 End 2021.08.15 @ 09:03:39 Sessions 1 Manual Loads 0 Difficulty Rogue Special Mode None Game No. 6 Rogue 6 Adventurer 0 Explorer 0 Win Type - Total 0 Types 0/0/0/0/0/0/0/0/0 Lore% 3 Gallery% 11 Achievement% 9 Wizard Run 0 Options --------- ASCII 0 Keyboard 0 Movement Mouse Keybinds 0 Fullscreen 2 Font 18/SmallcapsGlow Map View 76x50 Tactical HUD 1 Map Filters NONE Filters NONE Steam 1 RUN: 2727bdb3-af01-4e4f-a920-496d684dc14e